bitfinex-derivatives/quotes_ETHF0:USTF0_20240830
["timestamp","ask_amount","ask_price","bid_price","bid_amount"]
[1725043808714,0.39441,2535.8,2535.4,0.78886]
[1725043809016,2.71772,2535.7,2535.4,0.3944]
[1725043809322,2.71772,2535.7,2535.4,0.78886]
[1725043809323,2.3233,2535.7,2535.4,0.78886]
[1725043809529,2.3233,2535.7,2535.4,0.3944]
[1725043809530,2.71772,2535.7,2535.4,0.3944]
[1725043810124,2.71773,2535.7,2535.4,0.78886]
[1725043810310,6.2673,2535.7,2535.3,3.2078]
[1725043810511,0.39445,2535.6,2535.3,3.2078]
[1725043810816,6.2673,2535.7,2535.3,3.2078]
[1725043811115,6.2673,2535.7,2535.2,0.39449]
[1725043811116,0.39446,2535.5,2535.2,0.39449]
[1725043811320,3.2078,2535.4,2535.1,0.3945]
[1725043811518,3.2078,2535.4,2535.2,0.3945]
[1725043812108,0.39446,2535.5,2535.2,0.3945]
[1725043812308,0.39446,2535.5,2535.1,0.39451]
[1725043812518,3.60226,2535.5,2535.1,0.39451]
[1725043812829,3.60226,2535.5,2535.1,0.3945]
[1725043813312,0.39449,2535.3,2535.0,3.2078]
[1725043814012,0.39449,2535.3,2535.0,3.60233]
[1725043814225,2.71078,2535.4,2535.0,3.2078]
[1725043814521,3.2078,2535.5,2535.1,0.7897]
[1725043814713,0.39448,2535.4,2535.1,0.78971]
[1725043815316,3.60226,2535.5,2535.2,0.3945]
[1725043816023,3.2078,2535.5,2535.3,0.39448]
[1725043816219,2.3233,2535.7,2535.5,0.39445]
[1725043816414,2.3233,2535.7,2535.4,0.39446]
[1725043816715,7.54625,2535.6,2535.2,2.6018]
[1725043817027,3.2078,2535.6,2535.1,4.20211804]
[1725043817221,0.39446,2535.5,2535.1,3.80451]
[1725043817723,0.39446,2535.5,2535.1,4.19971]
[1725043817928,0.39447,2535.4,2535.1,3.80451]
[1725043818117,0.39447,2535.5,2535.2,0.3945]
[1725043818525,0.39447,2535.5,2535.1,3.8052]
[1725043818727,0.39447,2535.5,2535.1,3.41]
[1725043818928,4.19392,2535.6,2535.1,3.41]
[1725043819225,0.98616,2535.5,2535.0,3.2078]
[1725043819530,0.98616,2535.5,2535.0,3.60232]
[1725043819531,0.39449,2535.3,2535.0,3.60232]
[1725043819918,3.2078,2535.6,2535.0,3.2078]
[1725043820128,1.38093,2534.9,2534.8,0.00591098]
[1725043820426,1.38093,2534.9,2534.1,4.19446]
[1725043820427,0.98641,2534.8,2534.1,3.60247]
[1725043820621,0.39465,2534.3,2534.1,3.2078]
[1725043820825,4.19434,2534.5,2534.1,3.2078]
[1725043821022,0.39463,2534.4,2534.2,0.39466]
[1725043821217,3.9456,2534.3,2534.2,0.39466]
[1725043821529,3.9456,2534.3,2534.1,3.2078]
[1725043821726,3.9456,2534.3,2534.0,0.00591098]
[1725043821727,1.38136,2534.1,2534.0,0.00591098]
[1725043822227,5.32776,2534.1,2534.0,0.00591098]
[1725043822419,7.56726,2534.1,2534.0,0.00591098]
[1725043822820,6.1859,2534.1,2534.0,0.00591098]
[1725043823125,13.56726,2534.1,2534.0,0.00591098]
[1725043823526,16.77506,2534.1,2534.0,0.00591098]
[1725043823929,15.78837,2534.1,2534.0,0.00591098]
[1725043824327,9.3937,2534.1,2534.0,0.00591098]
[1725043824729,3.9464,2534.1,2534.0,0.40060098]
[1725043825031,0.00591098,2534.5,2534.0,0.40060098]
[1725043825032,3.60833098,2534.5,2534.1,0.39466]
[1725043825331,3.60833098,2534.5,2534.2,0.39466]
[1725043825519,3.60833098,2534.5,2534.0,0.00591098]
[1725043825520,3.21371098,2534.5,2534.3,0.39464]
[1725043825722,3.9456,2534.4,2534.3,0.39464]
[1725043825923,3.9456,2534.4,2534.2,0.39465]
[1725043826122,3.21371098,2534.5,2534.1,0.39467]
[1725043826325,3.60833098,2534.5,2534.1,0.39467]
[1725043826826,3.21371098,2534.5,2534.0,9.21109098]
[1725043827033,0.39463,2534.4,2534.0,9.21109098]
[1725043827229,0.39463,2534.4,2534.1,0.39467]
[1725043827429,3.21371098,2534.5,2534.0,5.40641098]
[1725043827629,0.39465,2534.3,2534.0,2.19861098]
[1725043827830,0.39466,2534.2,2534.0,2.19861098]
[1725043828030,0.39465,2534.3,2534.0,2.19861098]
[1725043828233,0.39465,2534.3,2534.0,2.59330098]
[1725043828437,0.00591098,2534.5,2534.4,0.39462]
[1725043828828,0.00591098,2534.5,2534.3,3.80463]
[1725043829030,0.00591098,2534.5,2534.0,10.95111098]
[1725043829231,3.21371098,2534.5,2534.1,0.39466]
[1725043829426,3.21371098,2534.5,2534.0,8.81641098]
[1725043829427,0.39463,2534.4,2534.0,8.81641098]
[1725043829638,0.39464,2534.3,2534.0,5.40641098]
[1725043830132,3.2078,2534.2,2534.0,0.00591098]
[1725043830732,3.60246,2534.2,2534.0,0.00591098]
[1725043830939,3.2078,2534.2,2534.0,0.00591098]
[1725043831535,0.00591098,2534.5,2534.0,3.41591098]
[1725043831741,3.21371098,2534.5,2534.2,0.39465]
[1725043832137,0.00591098,2534.5,2534.4,0.39462]
[1725043832441,0.00591098,2534.5,2534.3,3.60243]
[1725043832632,0.00591098,2534.5,2534.4,0.39462]
[1725043832841,0.00591098,2534.5,2534.4,2.67002]
[1725043833536,3.2078,2535.2,2534.9,0.39455]
[1725043833738,3.2078,2535.2,2534.6,6.6178]
[1725043833945,2.1415,2535.4,2534.8,3.41]
[1725043834136,3.2078,2535.7,2535.0,3.41]
[1725043834336,3.2078,2535.7,2535.1,0.39451]
[1725043834337,0.3983247,2535.6,2535.1,0.39451]
[1725043834642,0.3983247,2535.6,2535.1,0.3952]
[1725043834643,0.39445,2535.5,2535.1,0.3952]
[1725043834941,0.39445,2535.5,2534.8,3.8052]
[1725043834942,0.39449,2535.3,2534.8,0.39456]
[1725043835138,0.98614,2535.5,2534.7,0.3952]
[1725043835339,0.98614,2535.5,2534.7,0.39457]
[1725043835732,5.5616847,2535.6,2534.9,0.39454]
[1725043835733,0.39448,2535.4,2534.9,0.39454]
[1725043835933,0.39449,2535.3,2534.8,0.39455]
[1725043836132,6.5478047,2535.6,2535.2,0.3945]
[1725043836133,0.0038847,2535.6,2535.2,0.3945]
[1725043836445,0.0038847,2535.6,2535.3,0.39448]
[1725043836740,0.0038847,2535.6,2534.9,2.2375]
[1725043836945,0.0038847,2535.6,2535.1,0.39451]
[1725043837145,0.0038847,2535.6,2534.9,2.2375]
[1725043837333,0.0038847,2535.6,2535.2,0.39449]
[1725043837742,0.0038847,2535.6,2535.1,0.39451]
[1725043837743,0.3983247,2535.6,2535.1,0.39451]
[1725043837942,0.3983247,2535.6,2534.9,2.2375]
[1725043837943,0.0038847,2535.6,2535.2,0.39449]
[1725043838332,0.0038847,2535.6,2534.9,2.2375]
[1725043838538,0.3983247,2535.6,2535.1,0.3945]
[1725043838738,0.0038847,2535.6,2534.9,2.2375]
[1725043839151,0.39449,2535.3,2534.9,2.2375]
[1725043839538,0.3945,2535.2,2534.9,2.2375]
[1725043839847,0.14844498,2535.1,2534.9,2.2375]
[1725043840546,0.14844498,2535.1,2535.0,0.39453]
[1725043841145,0.14844498,2535.1,2534.9,2.63204]
[1725043841745,0.14844498,2535.0,2534.9,2.63204]
[1725043841946,0.14844498,2535.0,2534.9,2.63205]
[1725043843136,0.0038847,2535.6,2534.9,10.37648]
[1725043843335,0.0038847,2535.6,2535.3,0.39448]
[1725043843539,0.0038847,2535.6,2535.4,2.1123]
[1725043844046,0.39445,2535.5,2535.4,2.1123]
[1725043844347,0.0038847,2535.6,2535.4,2.1123]
[1725043844549,0.3983247,2535.6,2535.4,2.1123]
[1725043845038,0.0038847,2535.6,2535.4,2.1123]
[1725043845745,0.3983247,2535.6,2535.4,2.1123]
[1725043845946,0.0038847,2535.6,2535.4,2.1123]
[1725043846139,0.0038847,2535.6,2535.5,0.39445]
[1725043846343,0.0038847,2535.6,2535.5,2.70035]
[1725043848036,0.0038847,2535.6,2535.5,2.3059]
[1725043848445,0.0038847,2535.6,2535.5,2.70035]
[1725043848650,0.0038847,2535.6,2535.5,6.64435]
[1725043849349,0.0038847,2535.6,2535.5,2.70035]
[1725043849941,0.0038847,2535.6,2535.5,2.3059]
[1725043850136,0.0038847,2535.6,2535.5,2.70035]
[1725043850745,0.0038847,2535.6,2535.5,6.64435]
[1725043850946,0.0038847,2535.6,2535.5,2.3059]
[1725043851152,0.0038847,2535.6,2535.5,6.2499]
[1725043851451,0.0038847,2535.6,2535.5,2.3059]
[1725043851647,0.0038847,2535.6,2535.5,2.70035]
[1725043851849,0.0038847,2535.6,2535.5,6.2499]
[1725043852350,0.0038847,2535.6,2535.4,5.8531267]
[1725043852351,0.0038847,2535.6,2535.4,5.4586667]
[1725043852551,0.3983347,2535.6,2535.4,5.3201]
[1725043853145,0.0038847,2535.6,2535.4,5.3201]
[1725043853442,0.0038847,2535.6,2535.4,3.2078]
[1725043853645,0.0038847,2535.6,2535.4,7.01226]
[1725043853841,0.0038847,2535.6,2535.5,0.39445]
[1725043854049,0.0038847,2535.6,2535.4,7.01226]
[1725043854244,0.0038847,2535.6,2535.5,0.39445]
[1725043854449,0.0038847,2535.6,2535.5,4.73285]
[1725043854658,0.39429,2536.6,2536.1,0.39435]
[1725043854844,0.39429,2536.6,2536.2,3.41]
[1725043855045,6.43705,2536.8,2536.2,3.41]
[1725043855350,0.39428,2536.7,2536.2,3.80434]
[1725043855551,0.39429,2536.6,2536.2,3.80434]
[1725043855752,0.3943,2536.5,2536.2,3.41]
[1725043855954,0.3943,2536.5,2536.1,0.39436]
[1725043856149,0.39429,2536.6,2536.2,0.39434]
[1725043856462,0.39429,2536.6,2536.1,0.39435]
[1725043857154,0.3943,2536.5,2536.1,0.39435]
[1725043857352,0.39429,2536.6,2536.2,0.39434]
[1725043857743,2.2436,2536.8,2536.0,3.2078]
[1725043857944,0.39428,2536.7,2536.3,0.39433]
[1725043858252,2.2436,2536.8,2536.2,0.39434]
[1725043858253,0.39428,2536.6,2536.2,0.39434]
[1725043858458,2.2436,2536.8,2536.4,0.39431]
[1725043858459,2.63786,2536.8,2536.4,0.39431]
[1725043859154,0.39427,2536.7,2536.3,3.60212]
[1725043859350,2.63786,2536.8,2536.4,0.39431]
[1725043860055,0.39426,2536.8,2536.4,0.39431]
[1725043860360,3.29107,2537.0,2536.4,0.39431]
[1725043860653,0.39426,2536.8,2536.4,0.39431]
[1725043861549,0.39427,2536.7,2536.3,0.39432]
[1725043861850,0.39426,2536.8,2536.4,0.39431]
[1725043862054,3.29107,2537.0,2536.6,0.39428]
[1725043862055,2.3055,2537.0,2536.6,0.39428]
[1725043862247,0.39424,2536.9,2536.5,0.39429]
[1725043862559,0.39424,2536.9,2536.6,0.39428]
[1725043862757,3.2078,2537.1,2536.5,0.98575]
[1725043863052,0.39414,2537.6,2537.0,3.41]
[1725043863258,0.39415,2537.5,2537.1,2.66559]
[1725043863554,0.39415,2537.5,2537.2,0.39418]
[1725043863854,0.39416,2537.4,2537.2,0.39419]
[1725043864055,0.39417,2537.4,2537.2,0.39419]
[1725043864255,0.39417,2537.4,2537.2,0.39418]
[1725043864450,0.39419,2537.2,2537.0,0.40012098]
[1725043864755,0.3942,2537.1,2537.0,0.00591098]
[1725043864947,0.3942,2537.2,2537.0,0.40013098]
[1725043865658,0.98544,2537.3,2537.0,0.40013098]
[1725043865861,0.98544,2537.3,2537.0,0.00591098]
[1725043866159,1.37972,2537.1,2537.0,0.00591098]
[1725043866554,0.3942,2537.1,2537.0,0.00591098]
[1725043868960,0.3942,2537.2,2537.1,0.3942]
[1725043869154,3.2078,2537.4,2537.1,0.3942]
[1725043869353,0.98537,2537.5,2537.2,0.39418]
[1725043869354,0.39417,2537.3,2537.2,0.39418]
[1725043870163,0.39417,2537.3,2537.0,0.40013098]
[1725043870164,0.3942,2537.1,2537.0,0.40013098]
[1725043870363,0.3942,2537.2,2537.0,0.40013098]
[1725043870662,0.3942,2537.2,2537.1,0.3942]
[1725043870865,0.39419,2537.2,2537.1,0.3942]
[1725043871062,0.98537,2537.5,2537.0,0.40012098]
[1725043871063,0.3942,2537.1,2537.0,0.40012098]
[1725043871262,1.37972,2537.1,2537.0,0.00591098]
[1725043871470,12.30684,2537.1,2537.0,0.00591098]
[1725043871759,11.32132,2537.1,2537.0,0.00591098]
[1725043871955,5.32132,2537.1,2537.0,0.00591098]
[1725043872355,6.30684,2537.1,2537.0,0.00591098]
[1725043872758,4.3358,2537.1,2537.0,0.00591098]
[1725043873567,0.9854,2537.5,2537.2,0.39418]
[1725043873775,0.98536,2537.5,2537.0,0.40012098]
[1725043874070,0.3942,2537.1,2537.0,0.40012098]
[1725043874253,0.3942,2537.2,2537.0,0.40012098]
[1725043874461,0.39418,2537.3,2537.1,0.3942]
[1725043874661,0.9854,2537.4,2537.0,0.00591098]
[1725043874662,0.39417,2537.4,2537.2,0.39419]
[1725043875162,0.39417,2537.3,2537.1,0.39419]
[1725043875463,6.39176,2537.6,2537.1,0.39419]
[1725043875667,0.39416,2537.4,2537.0,0.00591098]
[1725043875859,0.39417,2537.3,2537.1,0.39419]
[1725043876052,0.39416,2537.5,2537.2,3.80419]
[1725043876256,5.4064,2537.6,2537.3,0.39417]
[1725043876465,5.80053,2537.6,2537.3,0.39417]
[1725043876667,5.80054,2537.6,2537.3,0.39417]
[1725043877261,5.4064,2537.6,2537.5,0.39414]
[1725043877457,3.2078,2537.6,2537.5,0.39414]
[1725043878267,3.2078,2537.6,2537.4,3.80415]
[1725043878659,3.2078,2537.6,2537.5,0.39414]
[1725043878872,3.15602,2538.2,2537.5,13.1486]
[1725043878873,2.1709,2538.2,2537.5,13.1486]
[1725043879071,0.39402,2538.3,2538.1,3.41]
[1725043880363,4.19277,2538.6,2538.1,3.41]
[1725043880364,0.39401,2538.4,2538.1,3.41]
[1725043880564,0.394,2538.4,2538.3,3.41]
[1725043881366,4.3332,2538.4,2538.3,3.41]
[1725043881570,0.39403,2538.2,2538.1,3.41]
[1725043881865,0.39403,2538.2,2537.8,3.41]
[1725043881866,0.39409,2537.9,2537.8,3.41]
[1725043882063,3.60189,2537.9,2537.8,3.41]
[1725043882870,0.39409,2537.9,2537.8,3.41]
[1725043883172,2.1493,2538.1,2537.9,0.39408]
[1725043883357,2.1493,2538.1,2538.0,3.41]
[1725043883358,0.39405,2538.1,2538.0,3.41]
[1725043883554,10.78881,2538.5,2538.0,3.41]
[1725043883754,0.39404,2538.2,2537.9,0.39407]
[1725043884154,10.78881,2538.5,2538.0,0.39406]
[1725043884366,11.1828,2538.5,2538.4,3.41]
[1725043884773,15.122,2538.5,2538.4,3.41]
[1725043886663,13.743,2538.5,2538.1,3.41]
[1725043886865,13.743,2538.5,2537.4,0.98538]
[1725043886866,1.37902,2538.4,2538.3,3.41]
[1725043887059,4.58682,2538.4,2538.3,3.41]
[1725043887262,8.52602,2538.4,2538.3,3.41]
[1725043887473,8.52602,2538.4,2537.4,3.2078]
[1725043887474,1.37912,2538.2,2538.1,3.41]
[1725043887962,5.31912,2538.2,2538.1,3.41]
[1725043888564,0.39403,2538.2,2538.1,3.41]
[1725043890977,3.1343,2538.5,2538.1,3.41]
[1725043891169,3.52829,2538.5,2538.4,3.41]
[1725043891567,7.46749,2538.5,2538.4,3.41]
[1725043891867,4.2241,2539.0,2538.4,3.41]
[1725043891868,7.4319,2539.0,2538.4,3.41]
[1725043892171,7.4319,2539.0,2538.4,0.00591098]
[1725043892172,0.39399,2538.5,2538.4,0.00591098]
[1725043893173,0.39397,2538.7,2538.4,0.39991098]
[1725043893372,0.39397,2538.7,2538.6,3.41]
[1725043893675,0.39396,2538.7,2538.6,3.41]
[1725043895268,2.2228,2538.9,2538.6,3.41]
[1725043895467,0.39396,2538.7,2538.6,3.41]
[1725043896469,0.39395,2538.8,2538.6,3.80397]
[1725043896872,2.2228,2538.9,2538.6,3.41]
[1725043897072,3.2078,2539.0,2538.8,0.39394]
[1725043897380,3.2078,2539.0,2538.9,3.41]
[1725043897868,3.60171,2539.0,2538.9,3.41]
[1725043898268,3.60171,2539.0,2538.7,3.41]
[1725043898269,0.39394,2538.8,2538.7,3.41]
[1725043898476,0.39397,2538.6,2538.5,3.41]
[1725043900176,0.98487,2538.8,2538.5,3.80399]
[1725043900384,1.37881,2538.8,2538.7,3.41]
[1725043900580,5.31801,2538.8,2538.7,3.41]
[1725043900886,4.1926,2539.0,2538.7,3.41]
[1725043901079,0.39394,2538.8,2538.7,3.41]
[1725043901477,4.1926,2539.0,2538.8,0.39394]
[1725043901478,0.39394,2538.9,2538.8,0.39394]
[1725043901979,0.39394,2538.9,2538.8,2.1943]
[1725043902183,0.39393,2538.9,2538.8,2.58824]
[1725043902379,3.2078,2539.3,2538.9,0.39391]
[1725043902683,3.60166,2539.3,2539.2,3.41]
[1725043902883,7.1462,2539.3,2539.2,3.80388]
[1725043903573,7.54006,2539.3,2539.2,3.41]
[1725043904174,5.73100787,2539.7,2539.2,3.41]
[1725043904377,0.39383,2539.5,2539.4,3.41]
[1725043904878,1.37842,2539.5,2538.9,3.2078]
[1725043905086,4.58633,2539.3,2539.2,3.41]
[1725043905475,8.52473,2539.3,2539.2,3.41]
[1725043906477,5.31693,2539.3,2539.2,3.41]
[1725043906680,9.5094,2539.3,2539.2,3.41]
[1725043906881,1.37869,2539.0,2538.9,6.6178]
[1725043907183,1.37869,2539.0,2538.9,3.41]
[1725043907886,4.58649,2539.0,2538.9,3.41]
[1725043908091,1.37869,2539.0,2538.9,3.41]
[1725043908775,0.39391,2539.0,2538.9,3.41]
[1725043910084,5.73115787,2539.3,2538.9,3.41]
[1725043910085,1.53866787,2539.3,2539.2,0.39388]
[1725043910275,0.39386,2539.3,2539.2,3.41]
[1725043913072,4.74646787,2539.6,2539.2,3.41]
[1725043913279,4.74646787,2539.6,2539.2,3.80387]
[1725043913280,4.19235,2539.6,2539.2,3.80387]
[1725043913580,3.60162,2539.6,2539.2,3.41]
[1725043913894,3.60162,2539.6,2539.5,3.41]
[1725043914587,3.2078,2539.9,2539.5,3.41]
[1725043914775,3.60157,2539.9,2539.8,3.41]
[1725043914971,0.39377,2539.9,2539.8,3.41]
[1725043915174,0.39377,2539.9,2539.6,4.8201]
[1725043915175,1.53866787,2540.1,2539.6,4.8201]
[1725043915382,0.39375,2540.1,2540.0,3.41]
[1725043915775,12.4,2540.1,2540.0,3.41]
[1725043916181,12.4,2540.1,2540.0,7.74055]
[1725043916380,12.4,2540.1,2540.0,3.41]
[1725043917383,12.4,2540.1,2540.0,7.3468]
[1725043918297,12.4,2540.1,2540.0,7.74055]
[1725043918482,12.4,2540.1,2540.0,13.74055]
[1725043918683,2.2814,2540.8,2540.0,13.3468]
[1725043918684,0.39363,2540.8,2540.0,13.3468]
[1725043918886,3.2078,2540.9,2539.9,4.19221]
[1725043918887,5.3538,2540.9,2539.9,3.2078]
[1725043919176,0.39372,2540.3,2540.2,3.41]
[1725043919378,4.5858,2540.3,2540.2,3.41]
[1725043919588,5.3148,2540.3,2540.2,3.41]
[1725043920183,0.39374,2540.1,2540.0,3.41]
[1725043920378,1.3781,2540.1,2540.0,3.41]
[1725043920580,5.3149,2540.1,2540.0,3.41]
[1725043920884,5.3149,2540.1,2539.8,0.00591098]
[1725043920885,1.3782,2539.9,2539.8,0.00591098]
[1725043921090,3.60157,2539.9,2539.8,0.00591098]
[1725043921397,0.39376,2540.0,2539.8,0.00591098]
[1725043921596,2.146,2540.2,2540.0,3.41]
[1725043921597,0.39374,2540.1,2540.0,3.41]
[1725043921780,2.146,2540.2,2540.0,3.41]
[1725043922285,0.39374,2540.1,2540.0,3.41]
[1725043922486,2.53973,2540.2,2540.0,3.80375]
[1725043922674,0.39374,2540.1,2540.0,3.41]
[1725043922880,2.53973,2540.2,2540.0,3.41]
[1725043923287,0.39373,2540.2,2540.0,7.3468]
[1725043923495,0.39371,2540.3,2540.0,9.91455]
[1725043923696,0.39371,2540.3,2540.2,3.41]
[1725043923997,0.39367,2540.6,2540.3,0.3937]
[1725043924290,3.2078,2540.4,2540.3,3.41]
[1725043924497,3.17094,2540.7,2540.3,3.41]
[1725043924695,0.39369,2540.4,2540.3,3.41]
[1725043925594,2.1868,2540.7,2540.4,0.39369]
[1725043925781,2.1868,2540.7,2540.6,3.41]
[1725043925782,2.58046,2540.7,2540.6,3.41]
[1725043926880,2.1868,2540.7,2540.6,3.41]
[1725043927185,3.2078,2540.8,2540.6,3.80366]
[1725043927385,3.2078,2540.8,2540.6,3.41]
[1725043927386,3.60143,2540.8,2540.6,3.41]
[1725043927582,0.39365,2540.7,2540.6,3.41]
[1725043927787,1.37777,2540.7,2540.6,3.41]
[1725043927982,0.39365,2540.7,2540.6,3.41]
[1725043929097,0.39365,2540.7,2540.2,3.60151]
[1725043929098,0.39368,2540.5,2540.4,3.41]
[1725043929797,2.52688,2540.5,2540.4,3.41]
[1725043929992,6.71888,2540.5,2540.4,3.41]
[1725043931194,0.39374,2540.1,2540.0,3.41]
[1725043931386,2.36263,2539.9,2539.8,0.00591098]
[1725043931596,3.40287825,2540.1,2539.1,0.14012709]
[1725043931597,0.39388,2539.2,2539.1,0.14012709]
[1725043931792,0.39387,2539.3,2539.2,0.39388]
[1725043932095,4.19242,2539.5,2539.1,3.80389]
[1725043932404,0.39388,2539.2,2539.1,3.80389]
[1725043932604,0.39388,2539.2,2539.1,3.41]
[1725043933293,4.58638,2539.2,2539.1,3.41]
[1725043933490,6.91128,2539.2,2539.1,3.41]
[1725043933994,6.91128,2539.2,2538.9,0.00591098]
[1725043933995,0.39389,2539.1,2539.0,4.54]
[1725043934307,1.37863,2539.1,2539.0,4.54]
[1725043935188,0.39391,2539.0,2538.9,0.00591098]
[1725043935396,8.58537,2539.0,2538.9,0.00591098]
[1725043935596,2.67741,2539.0,2538.9,0.00591098]
[1725043937304,3.66219,2539.0,2538.9,0.00591098]
[1725043938488,13.60059,2539.0,2538.9,0.00591098]
[1725043938890,14.58537,2539.0,2538.9,0.00591098]
[1725043939300,8.58537,2539.0,2538.9,0.00591098]
[1725043939508,7.60059,2539.0,2538.9,0.00591098]
[1725043940499,6.61581,2539.0,2538.9,0.00591098]
[1725043940902,7.60059,2539.0,2538.9,0.00591098]
[1725043942212,8.58537,2539.0,2538.9,0.00591098]
[1725043943099,14.58537,2539.0,2538.9,0.00591098]
[1725043945797,3.66219,2539.0,2538.9,0.00591098]
[1725043946098,7.60059,2539.0,2538.9,0.00591098]
[1725043946293,7.60059,2539.0,2538.9,4.54591098]
[1725043946294,0.39391,2539.0,2538.9,4.54591098]
[1725043946799,1.37869,2539.0,2538.9,0.00591098]
[1725043947005,12.30187,2539.0,2538.9,0.00591098]
[1725043947798,10.70147,2539.0,2538.9,0.00591098]
[1725043947999,16.70147,2539.0,2538.9,0.00591098]
[1725043948203,4.79351,2539.0,2538.9,0.00591098]
[1725043948410,5.77829,2539.0,2538.9,0.00591098]
[1725043948813,10.70147,2539.0,2538.9,0.00591098]
[1725043949900,7.52859,2539.0,2538.9,0.00591098]
[1725043950296,0.39391,2539.1,2539.0,0.39391]
[1725043950710,0.39391,2539.1,2539.0,2.276]
[1725043950904,1.37865,2539.1,2539.0,2.276]
[1725043951408,1.37869,2539.0,2538.9,4.54591098]
[1725043952017,0.39391,2539.0,2538.9,4.54591098]
[1725043952517,3.2078,2539.2,2538.9,6.75561098]
[1725043952706,3.60169,2539.2,2539.0,0.3939]
[1725043953008,0.39389,2539.1,2538.9,7.14953098]
[1725043953207,3.2078,2539.2,2539.0,0.39391]
[1725043953513,3.2078,2539.2,2539.1,0.39389]
[1725043954106,3.2078,2539.2,2539.1,4.33229]
[1725043954309,3.2078,2539.2,2539.1,10.33229]
[1725043954512,3.2078,2539.2,2539.1,10.72669]
[1725043955005,3.2078,2539.8,2539.1,13.5406]
[1725043955212,3.2078,2539.8,2539.7,4.54]
[1725043955505,3.60159,2539.8,2539.7,4.54]
[1725043955717,3.2078,2539.8,2539.7,4.54]
[1725043955910,3.2078,2539.8,2539.7,8.4776]
[1725043956117,0.00591098,2540.1,2539.8,0.39378]
[1725043956330,0.00591098,2540.1,2540.0,3.4]
[1725043956506,0.39965098,2540.1,2540.0,3.4]
[1725043957213,5.32081098,2540.1,2540.0,3.4]
[1725043957519,4.33645098,2540.1,2540.0,3.4]
[1725043957704,0.39965098,2540.1,2540.0,3.4]
[1725043959108,1.38401098,2540.1,2540.0,3.4]
[1725043959913,0.39377,2539.9,2539.8,3.4]
[1725043960113,3.60157,2539.9,2539.8,3.4]
[1725043961009,4.586,2539.9,2539.8,3.4]
[1725043961213,8.5236,2539.9,2539.8,3.4]
[1725043963118,4.586,2539.9,2539.8,3.4]
[1725043963313,0.39377,2539.9,2539.8,3.4]
[1725043964106,4.586,2539.9,2539.8,3.4]
[1725043964512,3.60157,2539.9,2539.8,3.4]
[1725043964709,0.39377,2539.9,2539.8,3.4]
[1725043965009,0.00591098,2540.1,2539.8,7.3376]
[1725043965010,0.39376,2540.0,2539.8,7.3376]
[1725043965209,0.00591098,2540.1,2539.9,3.4]
[1725043965416,0.39966098,2540.1,2539.9,3.79376]
[1725043965616,0.39375,2540.0,2539.9,3.4]
[1725043965812,1.37814,2540.0,2539.9,3.4]
[1725043967721,4.58594,2540.0,2539.9,3.4]
[1725043968614,0.39375,2540.0,2539.9,3.4]
[1725043969617,0.39375,2540.0,2539.9,3.79377]
[1725043970018,3.21371098,2540.1,2540.0,0.39375]
[1725043970218,0.39375,2540.0,2539.9,3.79376]
[1725043970624,0.39375,2540.0,2539.9,7.73056]
[1725043970921,0.39375,2540.0,2539.9,7.3368]
[1725043971332,3.60746098,2540.1,2539.9,7.73057]
[1725043971518,0.39375,2540.0,2539.9,3.79377]
[1725043971720,3.60746098,2540.1,2539.9,3.79377]
[1725043972219,0.39375,2540.0,2539.9,3.4]
[1725043972626,0.39966098,2540.1,2539.9,7.73057]
[1725043972825,0.39375,2540.0,2539.9,3.4]
[1725043974228,0.39966098,2540.1,2539.9,7.73057]
[1725043974426,0.39966098,2540.1,2539.9,3.79377]
[1725043974621,0.00591098,2540.1,2539.9,3.4]
[1725043974823,0.39966098,2540.1,2539.9,3.4]
[1725043975130,0.39375,2540.0,2539.9,3.4]
[1725043975534,0.39375,2540.0,2539.9,7.3368]
[1725043976332,0.39966098,2540.1,2539.9,7.73057]
[1725043976531,0.39375,2540.0,2539.9,3.4]
[1725043977030,0.39375,2540.0,2539.9,7.3368]
[1725043977234,0.00591098,2540.1,2539.9,7.3368]
[1725043977432,0.39375,2540.0,2539.9,3.4]
[1725043977631,0.39966098,2540.1,2539.9,3.4]
[1725043977826,0.00591098,2540.1,2539.9,3.4]
[1725043978031,0.39375,2540.0,2539.9,3.4]
[1725043978534,0.39966098,2540.1,2539.9,7.73057]
[1725043978845,0.00591098,2540.1,2539.9,3.4]
[1725043979035,0.00591098,2540.1,2539.9,3.79376]
[1725043979336,0.39965098,2540.1,2540.0,2.2772]
[1725043980235,0.39965098,2540.1,2539.8,0.3944]
[1725043980435,0.39965098,2540.1,2539.1,1.96942]
[1725043980436,3.2063,2540.0,2539.3,2.6716]
[1725043980629,4.19242,2539.5,2539.4,3.4]
[1725043980829,4.58625,2539.5,2539.4,3.4]
[1725043981540,4.58625,2539.5,2538.9,3.09763098]
[1725043981541,1.37869,2539.0,2538.9,0.00591098]
[1725043981728,4.58649,2539.0,2538.9,0.00591098]
[1725043981923,2.52584364,2539.2,2538.9,0.00591098]
[1725043981924,1.54111364,2539.2,2538.9,0.00591098]
[1725043982123,0.39388,2539.2,2539.1,3.4]
[1725043982323,4.58638,2539.2,2539.1,3.4]
[1725043982936,3.60168,2539.2,2539.1,3.4]
[1725043983437,1.37869,2539.0,2538.9,0.00591098]
[1725043983829,0.39391,2539.0,2538.9,3.40591098]
[1725043984435,0.39391,2539.1,2538.9,3.40591098]
[1725043984636,0.39391,2539.0,2538.9,3.40591098]
[1725043984939,7.57246,2539.4,2538.9,3.40591098]